[Event "17th Memorial Lezcano Montalvo 2025"]
[Site "Gran Canaria"]
[Date "2025.04.17"]
[Round "6.17"]
[White "Fiorito, Fabian"]
[Black "Henriquez Garcia, David"]
[Result "1-0"]
[Annotator "RC"]
[ECO "E17"]
[WhiteElo "2268"]
[BlackElo "1869"]
[PlyCount "49"]
[EventDate "2025.04.13"]
[EventType "swiss"]
[EventCountry "ESP"]
[SourceTitle "playchess.com"]
[Source "ChessBase"]
[SourceQuality "1"]
[TimeControl "5400+30"]

1. d4 {[%emt 0:00:02]} Nf6 {[%emt 0:00:22]} 2. Nf3 {[%emt 0:02:28]} e6 {[%emt 0:00:33]} 3. c4 {[%emt 0:04:24]} b6 {[%emt 0:00:35]} 4. g3 {[%emt 0:01:49]} Bb7 {[%emt 0:00:31]} 5. Bg2 {[%emt 0:00:06]} Be7 {[%emt 0:01:07]} 6. O-O {[%emt 0:00:39]} O-O {[%emt 0:00:19]} 7. d5 {[%emt 0:03:35]} exd5 {[%emt 0:03:03]} 8. Nh4 {[%emt 0:00:18]} c6 {[%emt 0:01:13]} 9. cxd5 {[%emt 0:00:18]} Nxd5 {[%emt 0:00:32]} 10. Nf5 {[%emt 0:01:05]} Nf6 {[%emt 0:08:33]} 11. e4 {[%emt 0:03:22]} d6 {[%emt 0:06:27]} 12. Bf4 {[%emt 0:04:50]} Re8 {[%emt 0:10:58]} 13. Bxd6 {[%emt 0:02:15]} Bf8 {[%emt 0:04:09]} 14. e5 {[%emt 0:05:28]} Nfd7 {[%emt 0:03:59]} 15. Bxf8 {[%emt 0:01:15]} Nxf8 {[%emt 0:04:33]} 16. Nd6 {[%emt 0:03:34]} Re7 {[%emt 0:04:27]} 17. Nc3 {[%emt 0:01:28]} Ba6 {[%emt 0:03:09]} 18. Re1 {[%emt 0:00:19]} Nbd7 {[%emt 0:01:59]} 19. f4 {[%emt 0:01:46]} b5 {[%emt 0:01:28]} 20. Kh1 {[%emt 0:04:33]} Qb6 {[%emt 0:01:13]} 21. Qg4 {[%emt 0:01:56]} Re6 {[%emt 0:06:03]} 22. Nce4 {[%emt 0:02:26]} g6 {[%emt 0:02:20]} 23. Rad1 {[%emt 0:01:57]} f5 {[%emt 0:00:19]} 24. Nxf5 {[%emt 0:12:59]} h5 {[%emt 0:00:57]} 25. Nh6+ {[%emt 0:00:30]} 1-0

[Event "17th Memorial Lezcano Montalvo 2025"]
[Site "Gran Canaria"]
[Date "2025.04.17"]
[Round "6.18"]
[White "Marrero Cardenes, Agustin"]
[Black "Calzetta Ruiz, Monica"]
[Result "0-1"]
[Annotator "RC"]
[ECO "A48"]
[WhiteElo "2163"]
[BlackElo "2224"]
[PlyCount "120"]
[EventDate "2025.04.13"]
[EventType "swiss"]
[EventCountry "ESP"]
[SourceTitle "playchess.com"]
[Source "ChessBase"]
[SourceQuality "1"]
[TimeControl "5400+30"]

1. d4 {[%emt 0:00:19]} Nf6 {[%emt 0:00:32]} 2. Nf3 {[%emt 0:00:08]} c5 {[%emt 0:01:42]} 3. e3 {[%emt 0:00:48]} g6 {[%emt 0:00:27]} 4. Be2 {[%emt 0:01:05]} Bg7 {[%emt 0:00:39]} 5. O-O {[%emt 0:00:43]} O-O {[%emt 0:01:10]} 6. b3 {[%emt 0:04:50]} cxd4 {[%emt 0:14:14]} 7. exd4 {[%emt 0:00:12]} Nc6 {[%emt 0:00:33]} 8. Bb2 {[%emt 0:02:45]} d5 {[%emt 0:03:29]} 9. Nbd2 {[%emt 0:12:08]} Bf5 {[%emt 0:02:49]} 10. c4 {[%emt 0:02:51]} Rc8 {[%emt 0:02:02]} 11. Ne5 {[%emt 0:05:53]} Nxe5 {[%emt 0:18:35]} 12. dxe5 {[%emt 0:00:07]} Nd7 {[%emt 0:00:14]} 13. f4 {[%emt 0:12:51]} Nb6 {[%emt 0:08:50]} 14. Bd4 {[%emt 0:02:18]} dxc4 {[%emt 0:07:20]} 15. Nxc4 {[%emt 0:01:24]} Nxc4 {[%emt 0:10:57]} 16. Bxc4 {[%emt 0:00:41]} a6 {[%emt 0:00:48]} 17. a4 {[%emt 0:01:04]} b5 {[%emt 0:07:15]} 18. axb5 {[%emt 0:05:35]} axb5 {[%emt 0:00:02]} 19. Bxb5 {[%emt 0:00:25]} Bc2 {[%emt 0:00:44]} 20. Qd2 {[%emt 0:00:04]} Bxb3 {[%emt 0:00:05]} 21. Qe3 {[%emt 0:06:31]} Qd5 {[%emt 0:00:49]} 22. Be2 {[%emt 0:01:29]} Rfd8 {[%emt 0:04:43]} 23. Bb6 {[%emt 0:01:05]} Rd7 {[%emt 0:00:30]} 24. Rfc1 {[%emt 0:16:02]} Rxc1+ {[%emt 0:04:07]} 25. Rxc1 {[%emt 0:02:11]} Bh6 {[%emt 0:00:23]} 26. Bg4 {[%emt 0:01:57]} e6 {[%emt 0:03:09]} 27. Rc8+ {[%emt 0:01:13]} Kg7 {[%emt 0:01:11]} 28. Bc5 {[%emt 0:06:51]} Rd8 {[%emt 0:00:15]} 29. Rxd8 {[%emt 0:00:07]} Qxd8 {[%emt 0:00:03]} 30. Qxb3 {[%emt 0:00:09]} Bxf4 {[%emt 0:00:01]} 31. Bd6 {[%emt 0:01:29]} Qh4 {[%emt 0:00:03]} 32. Qd1 {[%emt 0:06:58]} Qxh2+ {[%emt 0:00:21]} 33. Kf1 {[%emt 0:00:01]} h5 {[%emt 0:00:29]} 34. Bf3 {[%emt 0:00:59]} Bxe5 {[%emt 0:00:55]} 35. Ba3 {[%emt 0:00:49]} Qh1+ {[%emt 0:02:07]} 36. Ke2 {[%emt 0:00:24]} Qh4 {[%emt 0:01:31]} 37. Qc2 {[%emt 0:01:56]} Qd4 {[%emt 0:03:04]} 38. Bc1 {[%emt 0:00:35]} h4 {[%emt 0:01:02]} 39. Be3 {[%emt 0:01:08]} Qb2 {[%emt 0:00:54]} 40. Qxb2 {[%emt 0:00:09]} Bxb2 {[%emt 0:00:02]} 41. Bg5 {[%emt 0:00:36]} Bf6 {[%emt 0:00:05]} 42. Bd2 {[%emt 0:00:48]} g5 {[%emt 0:00:12]} 43. Bg4 {[%emt 0:00:45]} Be7 {[%emt 0:00:08]} 44. Bh5 {[%emt 0:01:03]} f5 {[%emt 0:00:06]} 45. Kf3 {[%emt 0:00:23]} e5 {[%emt 0:00:18]} 46. Be8 {[%emt 0:00:44]} e4+ {[%emt 0:01:06]} 47. Ke2 {[%emt 0:00:13]} g4 {[%emt 0:01:36]} 48. Bf4 {[%emt 0:00:57]} Kf6 {[%emt 0:00:39]} 49. Bb5 {[%emt 0:00:24]} Bc5 {[%emt 0:00:11]} 50. Bc7 {[%emt 0:00:10]} h3 {[%emt 0:01:42]} 51. gxh3 {[%emt 0:00:23]} gxh3 {[%emt 0:00:01]} 52. Bh2 {[%emt 0:00:18]} Kg5 {[%emt 0:00:19]} 53. Bc6 {[%emt 0:01:00]} Kg4 {[%emt 0:00:18]} 54. Bd5 {[%emt 0:00:28]} Be7 {[%emt 0:00:06]} 55. Kf2 {[%emt 0:00:54]} Bh4+ {[%emt 0:00:15]} 56. Kg1 {[%emt 0:00:19]} Bg3 {[%emt 0:00:20]} 57. Bb3 {[%emt 0:00:48]} f4 {[%emt 0:00:42]} 58. Be6+ {[%emt 0:00:27]} Kf3 {[%emt 0:00:42]} 59. Bxh3 {[%emt 0:00:33]} Bxh2+ {[%emt 0:00:02]} 60. Kxh2 {[%emt 0:00:01]} Kf2 {[%emt 0:00:11]} 0-1

[Event "17th Memorial Lezcano Montalvo 2025"]
[Site "Gran Canaria"]
[Date "2025.04.17"]
[Round "6.19"]
[White "Hernando Rodrigo, Jose Maria"]
[Black "Camino Carrio, Nicanor"]
[Result "1-0"]
[Annotator "RC"]
[ECO "E62"]
[WhiteElo "2256"]
[BlackElo "2045"]
[PlyCount "110"]
[EventDate "2025.04.13"]
[EventType "swiss"]
[EventCountry "ESP"]
[SourceTitle "playchess.com"]
[Source "ChessBase"]
[SourceQuality "1"]
[TimeControl "5400+30"]

1. d4 {[%emt 0:00:00]} Nf6 {[%emt 0:00:17]} 2. Nf3 {[%emt 0:00:08]} g6 {[%emt 0:00:21]} 3. c4 {[%emt 0:00:08]} Bg7 {[%emt 0:00:31]} 4. Nc3 {[%emt 0:00:05]} O-O {[%emt 0:00:13]} 5. g3 {[%emt 0:00:53]} d6 {[%emt 0:00:17]} 6. Bg2 {[%emt 0:00:06]} Nc6 {[%emt 0:00:27]} 7. d5 {[%emt 0:00:43]} Na5 {[%emt 0:00:09]} 8. b3 {[%emt 0:01:38]} c5 {[%emt 0:04:37]} 9. Bb2 {[%emt 0:01:55]} a6 {[%emt 0:01:14]} 10. Nd2 {[%emt 0:01:55]} Bd7 {[%emt 0:01:08]} 11. O-O {[%emt 0:00:44]} Rb8 {[%emt 0:00:37]} 12. Rb1 {[%emt 0:03:35]} b5 {[%emt 0:00:20]} 13. Qc1 {[%emt 0:00:34]} Bh6 {[%emt 0:01:40]} 14. f4 {[%emt 0:01:20]} e5 {[%emt 0:03:25]} 15. dxe6 {[%emt 0:04:33]} Bxe6 {[%emt 0:00:11]} 16. Nce4 {[%emt 0:02:31]} Bg7 {[%emt 0:02:06]} 17. Nxf6+ {[%emt 0:10:47]} Bxf6 {[%emt 0:00:07]} 18. Bxf6 {[%emt 0:00:05]} Qxf6 {[%emt 0:00:11]} 19. Ne4 {[%emt 0:00:05]} Qg7 {[%emt 0:01:03]} 20. Qa3 {[%emt 0:04:35]} Bf5 {[%emt 0:09:29]} 21. Rbd1 {[%emt 0:02:24]} Nc6 {[%emt 0:09:38]} 22. Nxd6 {[%emt 0:08:49]} Nd4 {[%emt 0:00:58]} 23. Nxf5 {[%emt 0:07:17]} Nxf5 {[%emt 0:00:07]} 24. Qxc5 {[%emt 0:00:24]} bxc4 {[%emt 0:00:07]} 25. bxc4 {[%emt 0:00:24]} Rfc8 {[%emt 0:03:06]} 26. Qa7 {[%emt 0:00:09]} Qc3 {[%emt 0:03:02]} 27. Rd3 {[%emt 0:06:39]} Qxc4 {[%emt 0:04:46]} 28. Bd5 {[%emt 0:02:52]} Qc7 {[%emt 0:01:17]} 29. Qxc7 {[%emt 0:00:45]} Rxc7 {[%emt 0:00:07]} 30. e4 {[%emt 0:00:11]} Nd6 {[%emt 0:01:25]} 31. Rf2 {[%emt 0:00:38]} h5 {[%emt 0:01:50]} 32. f5 {[%emt 0:03:24]} g5 {[%emt 0:00:45]} 33. e5 {[%emt 0:01:52]} Rb1+ {[%emt 0:00:13]} 34. Kg2 {[%emt 0:00:19]} Ne8 {[%emt 0:05:16]} 35. Rb3 {[%emt 0:12:15]} Rd1 {[%emt 0:06:54]} 36. Bf3 {[%emt 0:01:05]} Re1 {[%emt 0:02:45]} 37. e6 {[%emt 0:02:33]} Nf6 {[%emt 0:01:00]} 38. exf7+ {[%emt 0:01:12]} Kxf7 {[%emt 0:02:59]} 39. Rb7 {[%emt 0:00:22]} Rxb7 {[%emt 0:01:52]} 40. Bxb7 {[%emt 0:00:06]} a5 {[%emt 0:00:30]} 41. Rb2 {[%emt 0:04:10]} g4 {[%emt 0:07:59]} 42. Ba6 {[%emt 0:01:00]} Ne4 {[%emt 0:01:09]} 43. Bd3 {[%emt 0:01:27]} Ng5 {[%emt 0:00:29]} 44. Kf2 {[%emt 0:01:11]} Rh1 {[%emt 0:05:38]} 45. Ke3 {[%emt 0:00:34]} Re1+ {[%emt 0:01:28]} 46. Kd4 {[%emt 0:01:37]} Nf3+ {[%emt 0:00:16]} 47. Kc5 {[%emt 0:00:09]} Re3 {[%emt 0:01:57]} 48. Rb7+ {[%emt 0:00:46]} Kf6 {[%emt 0:01:10]} 49. Rb6+ {[%emt 0:00:06]} Kf7 {[%emt 0:00:30]} 50. Bc4+ {[%emt 0:00:12]} Kf8 {[%emt 0:00:23]} 51. f6 {[%emt 0:00:55]} Re8 {[%emt 0:02:23]} 52. f7 {[%emt 0:02:41]} Rc8+ {[%emt 0:00:30]} 53. Rc6 {[%emt 0:00:30]} Rd8 {[%emt 0:01:01]} 54. Bb3 {[%emt 0:03:07]} Ng5 {[%emt 0:02:29]} 55. Rg6 {[%emt 0:01:02]} Ra8 {[%emt 0:13:38]} 1-0

[Event "17th Memorial Lezcano Montalvo 2025"]
[Site "Gran Canaria"]
[Date "2025.04.17"]
[Round "6.20"]
[White "Schmitz, Andreas Arnold"]
[Black "Barlov, Dragan"]
[Result "0-1"]
[Annotator "RC"]
[ECO "B08"]
[WhiteElo "1967"]
[BlackElo "2351"]
[PlyCount "120"]
[EventDate "2025.04.13"]
[EventType "swiss"]
[EventCountry "ESP"]
[SourceTitle "playchess.com"]
[Source "ChessBase"]
[SourceQuality "1"]
[TimeControl "5400+30"]

1. e4 {[%emt 0:00:04]} d6 {[%emt 0:02:12]} 2. d4 {[%emt 0:00:16]} Nf6 {[%emt 0:00:17]} 3. Nc3 {[%emt 0:00:35]} g6 {[%emt 0:02:52]} 4. Nf3 {[%emt 0:05:28]} Bg7 {[%emt 0:00:40]} 5. Bd3 {[%emt 0:02:54]} O-O {[%emt 0:05:42]} 6. O-O {[%emt 0:02:32]} Nc6 {[%emt 0:05:35]} 7. a3 {[%emt 0:02:13]} Bg4 {[%emt 0:03:26]} 8. Be3 {[%emt 0:01:50]} Nd7 {[%emt 0:01:20]} 9. Be2 {[%emt 0:01:07]} e5 {[%emt 0:08:54]} 10. d5 {[%emt 0:01:57]} Bxf3 {[%emt 0:03:39]} 11. Bxf3 {[%emt 0:00:19]} Nd4 {[%emt 0:00:30]} 12. Bxd4 {[%emt 0:04:25]} exd4 {[%emt 0:00:15]} 13. Ne2 {[%emt 0:03:18]} Qf6 {[%emt 0:04:54]} 14. c3 {[%emt 0:01:16]} dxc3 {[%emt 0:00:12]} 15. Nxc3 {[%emt 0:00:49]} a6 {[%emt 0:07:55]} 16. Rc1 {[%emt 0:02:16]} Rfe8 {[%emt 0:06:50]} 17. Na4 {[%emt 0:07:28]} Qd8 {[%emt 0:17:40]} 18. Qc2 {[%emt 0:03:45]} b5 {[%emt 0:03:55]} 19. Nc3 {[%emt 0:00:18]} h5 {[%emt 0:00:27]} 20. Na2 {[%emt 0:01:50]} Bh6 {[%emt 0:00:28]} 21. Rcd1 {[%emt 0:01:31]} a5 {[%emt 0:23:17]} 22. b4 {[%emt 0:02:09]} Qb8 {[%emt 0:00:00]} 23. Be2 {[%emt 0:03:37]} axb4 {[%emt 0:00:00]} 24. axb4 {[%emt 0:00:23]} Bg7 {[%emt 0:00:00]} 25. Rd2 {[%emt 0:02:13]} Ra3 {[%emt 0:00:00]} 26. Rd3 {[%emt 0:04:01]} Ra4 {[%emt 0:00:00]} 27. Rb3 {[%emt 0:00:42]} Qb6 {[%emt 0:00:00]} 28. Rd1 {[%emt 0:02:25]} Bd4 {[%emt 0:00:00]} 29. Bxb5 {[%emt 0:01:09]} Bxf2+ {[%emt 0:00:00]} 30. Qxf2 {[%emt 0:00:15]} Qxb5 {[%emt 0:00:00]} 31. Re3 {[%emt 0:12:17]} Qa6 {[%emt 0:00:52]} 32. Re2 {[%emt 0:03:36]} Ne5 {[%emt 0:00:11]} 33. Rf1 {[%emt 0:00:41]} Ra8 {[%emt 0:00:40]} 34. b5 {[%emt 0:01:14]} Qa5 {[%emt 0:00:19]} 35. Nc1 {[%emt 0:01:41]} Qxb5 {[%emt 0:00:27]} 36. Rb2 {[%emt 0:00:31]} Qd7 {[%emt 0:00:59]} 37. Qc2 {[%emt 0:02:33]} Rc4 {[%emt 0:00:11]} 38. Qb1 {[%emt 0:00:10]} Qg4 {[%emt 0:01:35]} 39. Nd3 {[%emt 0:02:45]} Qxe4 {[%emt 0:01:09]} 40. Nxe5 {[%emt 0:00:40]} Qxe5 {[%emt 0:00:20]} 41. Rbf2 {[%emt 0:03:41]} Rf8 {[%emt 0:00:12]} 42. Qb5 {[%emt 0:03:09]} Rc5 {[%emt 0:01:17]} 43. Qd7 {[%emt 0:01:47]} Qd4 {[%emt 0:00:19]} 44. h3 {[%emt 0:02:05]} Rc2 {[%emt 0:00:21]} 45. g4 {[%emt 0:00:34]} hxg4 {[%emt 0:00:59]} 46. hxg4 {[%emt 0:00:20]} Rxf2 {[%emt 0:00:25]} 47. Rxf2 {[%emt 0:00:04]} Qxd5 {[%emt 0:00:13]} 48. Qxc7 {[%emt 0:01:15]} Qd1+ {[%emt 0:00:25]} 49. Kh2 {[%emt 0:00:15]} Qxg4 {[%emt 0:00:05]} 50. Qxd6 {[%emt 0:00:16]} Re8 {[%emt 0:01:11]} 51. Qf6 {[%emt 0:00:32]} Qh5+ {[%emt 0:00:30]} 52. Kg2 {[%emt 0:00:18]} Qd5+ {[%emt 0:00:07]} 53. Kg1 {[%emt 0:03:40]} Re1+ {[%emt 0:00:44]} 54. Rf1 {[%emt 0:01:15]} Re5 {[%emt 0:00:41]} 55. Rf2 {[%emt 0:01:05]} Rh5 {[%emt 0:01:10]} 56. Rf3 {[%emt 0:00:55]} Qd1+ {[%emt 0:00:43]} 57. Kf2 {[%emt 0:00:20]} Qd2+ {[%emt 0:00:15]} 58. Kg3 {[%emt 0:00:20]} Qh2+ {[%emt 0:00:41]} 59. Kg4 {[%emt 0:00:14]} Qg2+ {[%emt 0:00:11]} 60. Rg3 {[%emt 0:00:26]} Qe4+ {[%emt 0:00:10]} 0-1

[Event "17th Memorial Lezcano Montalvo 2025"]
[Site "Gran Canaria"]
[Date "2025.04.17"]
[Round "6.21"]
[White "Rivero Tacoronte, Gabriel"]
[Black "Brito Garcia, Alfredo"]
[Result "0-1"]
[Annotator "RC"]
[ECO "C50"]
[WhiteElo "1963"]
[BlackElo "2214"]
[PlyCount "68"]
[EventDate "2025.04.13"]
[EventType "swiss"]
[EventCountry "ESP"]
[SourceTitle "playchess.com"]
[Source "ChessBase"]
[SourceQuality "1"]
[TimeControl "5400+30"]

1. e4 {[%emt 0:00:24]} e5 {[%emt 0:00:11]} 2. Nf3 {[%emt 0:00:06]} Nc6 {[%emt 0:00:06]} 3. Bc4 {[%emt 0:00:37]} Bc5 {[%emt 0:00:06]} 4. O-O {[%emt 0:00:09]} Nf6 {[%emt 0:00:04]} 5. d3 {[%emt 0:00:05]} d6 {[%emt 0:00:07]} 6. a4 {[%emt 0:00:33]} a5 {[%emt 0:00:05]} 7. Be3 {[%emt 0:00:05]} O-O {[%emt 0:02:58]} 8. Bxc5 {[%emt 0:05:47]} dxc5 {[%emt 0:00:09]} 9. Bb5 {[%emt 0:01:48]} Na7 {[%emt 0:18:44]} 10. Nxe5 {[%emt 0:15:39]} Qd4 {[%emt 0:10:38]} 11. Nf3 {[%emt 0:00:06]} Qxb2 {[%emt 0:03:23]} 12. Na3 {[%emt 0:16:15]} Qc3 {[%emt 0:19:28]} 13. Qd2 {[%emt 0:11:02]} Qxd2 {[%emt 0:04:32]} 14. Nxd2 {[%emt 0:00:03]} b6 {[%emt 0:01:12]} 15. f4 {[%emt 0:03:20]} Bb7 {[%emt 0:01:28]} 16. h3 {[%emt 0:07:18]} Rad8 {[%emt 0:02:07]} 17. Bc4 {[%emt 0:06:52]} Nc6 {[%emt 0:02:50]} 18. c3 {[%emt 0:00:25]} Ne7 {[%emt 0:02:42]} 19. Nc2 {[%emt 0:05:44]} Ne8 {[%emt 0:02:40]} 20. Ne3 {[%emt 0:07:19]} Nd6 {[%emt 0:01:32]} 21. Rfd1 {[%emt 0:00:10]} Nxc4 {[%emt 0:04:45]} 22. Ndxc4 {[%emt 0:00:17]} f6 {[%emt 0:00:31]} 23. Na3 {[%emt 0:03:05]} g5 {[%emt 0:08:56]} 24. f5 {[%emt 0:02:06]} Rf7 {[%emt 0:04:49]} 25. Nb5 {[%emt 0:02:50]} Nc8 {[%emt 0:02:10]} 26. Ra2 {[%emt 0:03:13]} Rfd7 {[%emt 0:01:39]} 27. Ng4 {[%emt 0:01:07]} Kg7 {[%emt 0:00:39]} 28. Nf2 {[%emt 0:00:04]} Ne7 {[%emt 0:00:55]} 29. Rad2 {[%emt 0:00:58]} Ba6 {[%emt 0:00:55]} 30. Na3 {[%emt 0:04:34]} Nc6 {[%emt 0:00:51]} 31. c4 {[%emt 0:02:54]} Ne5 {[%emt 0:00:33]} 32. Nb1 {[%emt 0:00:52]} Bb7 {[%emt 0:00:07]} 33. Kf1 {[%emt 0:00:30]} Bc6 {[%emt 0:00:11]} 34. Ra2 {[%emt 0:01:13]} Nxd3 {[%emt 0:01:40]} 0-1

[Event "17th Memorial Lezcano Montalvo 2025"]
[Site "Gran Canaria"]
[Date "2025.04.17"]
[Round "6.22"]
[White "Perez Rosales, Pedro"]
[Black "Rodriguez Avila, Alvaro"]
[Result "1-0"]
[Annotator "RC"]
[ECO "A49"]
[WhiteElo "1942"]
[BlackElo "2212"]
[PlyCount "75"]
[EventDate "2025.04.13"]
[EventType "swiss"]
[EventCountry "ESP"]
[SourceTitle "playchess.com"]
[Source "ChessBase"]
[SourceQuality "1"]
[TimeControl "5400+30"]

1. Nf3 {[%emt 0:01:59]} Nf6 {[%emt 0:00:13]} 2. g3 {[%emt 0:00:04]} g6 {[%emt 0:00:09]} 3. Bg2 {[%emt 0:00:18]} Bg7 {[%emt 0:00:21]} 4. O-O {[%emt 0:00:07]} O-O {[%emt 0:00:08]} 5. d4 {[%emt 0:00:17]} d6 {[%emt 0:00:10]} 6. a4 {[%emt 0:00:05]} Nbd7 {[%emt 0:04:18]} 7. Nc3 {[%emt 0:00:07]} e5 {[%emt 0:02:08]} 8. dxe5 {[%emt 0:00:06]} dxe5 {[%emt 0:00:27]} 9. e4 {[%emt 0:00:06]} Qe7 {[%emt 0:08:17]} 10. b3 {[%emt 0:04:33]} Rd8 {[%emt 0:07:15]} 11. Ba3 {[%emt 0:01:15]} Nc5 {[%emt 0:00:35]} 12. Bxc5 {[%emt 0:00:15]} Qe8 {[%emt 0:01:01]} 13. Qe2 {[%emt 0:02:11]} b6 {[%emt 0:07:05]} 14. Ba3 {[%emt 0:00:17]} a5 {[%emt 0:00:05]} 15. Rfd1 {[%emt 0:00:13]} Ba6 {[%emt 0:00:23]} 16. Rxd8 {[%emt 0:00:20]} Qxd8 {[%emt 0:00:05]} 17. Qd2 {[%emt 0:00:08]} Qe8 {[%emt 0:00:05]} 18. Rd1 {[%emt 0:00:07]} Bb7 {[%emt 0:00:21]} 19. Ne1 {[%emt 0:03:44]} h5 {[%emt 0:00:26]} 20. Nd5 {[%emt 0:01:27]} Bxd5 {[%emt 0:03:38]} 21. exd5 {[%emt 0:00:12]} Rd8 {[%emt 0:00:04]} 22. c4 {[%emt 0:00:24]} c6 {[%emt 0:02:07]} 23. Qe3 {[%emt 0:02:25]} cxd5 {[%emt 0:00:22]} 24. cxd5 {[%emt 0:00:43]} e4 {[%emt 0:03:21]} 25. d6 {[%emt 0:01:36]} h4 {[%emt 0:03:52]} 26. Nc2 {[%emt 0:01:10]} Qc6 {[%emt 0:01:50]} 27. Qe2 {[%emt 0:01:26]} Qc8 {[%emt 0:02:34]} 28. Ne3 {[%emt 0:01:46]} Qe6 {[%emt 0:03:45]} 29. Qc4 {[%emt 0:01:10]} Qe5 {[%emt 0:00:04]} 30. Qb5 {[%emt 0:02:33]} Qe6 {[%emt 0:00:23]} 31. Qxb6 {[%emt 0:00:36]} Rd7 {[%emt 0:00:04]} 32. Qb5 {[%emt 0:04:02]} h3 {[%emt 0:02:42]} 33. Bf1 {[%emt 0:00:56]} Bh6 {[%emt 0:01:17]} 34. Qc4 {[%emt 0:03:03]} Qe5 {[%emt 0:01:09]} 35. Qd4 {[%emt 0:00:15]} Qh5 {[%emt 0:00:01]} 36. Qxf6 {[%emt 0:04:04]} Bxe3 {[%emt 0:00:04]} 37. fxe3 {[%emt 0:01:15]} Qxd1 {[%emt 0:01:13]} 38. Bb2 {[%emt 0:00:07]} 1-0

[Event "17th Memorial Lezcano Montalvo 2025"]
[Site "Gran Canaria"]
[Date "2025.04.17"]
[Round "6.23"]
[White "Paquico Rodriguez, Ivan"]
[Black "Bolivar Castro, Alejandro"]
[Result "0-1"]
[Annotator "RC"]
[ECO "A46"]
[WhiteElo "2202"]
[BlackElo "2006"]
[PlyCount "102"]
[EventDate "2025.04.13"]
[EventType "swiss"]
[EventCountry "ESP"]
[SourceTitle "playchess.com"]
[Source "ChessBase"]
[SourceQuality "1"]
[TimeControl "5400+30"]

1. Nf3 {[%emt 0:00:07]} Nf6 {[%emt 0:00:05]} 2. b3 {[%emt 0:00:13]} d6 {[%emt 0:00:11]} 3. d4 {[%emt 0:00:22]} a5 {[%emt 0:05:00]} 4. a4 {[%emt 0:02:45]} g6 {[%emt 0:02:49]} 5. Bb2 {[%emt 0:00:44]} Bg7 {[%emt 0:00:07]} 6. e3 {[%emt 0:00:08]} Bf5 {[%emt 0:01:00]} 7. Be2 {[%emt 0:04:18]} O-O {[%emt 0:01:46]} 8. O-O {[%emt 0:01:54]} c6 {[%emt 0:02:42]} 9. Nbd2 {[%emt 0:06:11]} Na6 {[%emt 0:07:58]} 10. Nh4 {[%emt 0:04:16]} d5 {[%emt 0:28:03]} 11. Nxf5 {[%emt 0:18:40]} gxf5 {[%emt 0:00:04]} 12. Bd3 {[%emt 0:02:12]} e6 {[%emt 0:00:11]} 13. c3 {[%emt 0:01:27]} Kh8 {[%emt 0:07:54]} 14. f3 {[%emt 0:03:36]} Bh6 {[%emt 0:02:30]} 15. Qe2 {[%emt 0:01:39]} Nh5 {[%emt 0:01:06]} 16. f4 {[%emt 0:07:15]} Nf6 {[%emt 0:00:36]} 17. Ba3 {[%emt 0:02:18]} Rg8 {[%emt 0:00:50]} 18. Nf3 {[%emt 0:02:36]} Bf8 {[%emt 0:00:51]} 19. Ne5 {[%emt 0:04:14]} Rg7 {[%emt 0:00:53]} 20. Bc1 {[%emt 0:04:41]} Nc7 {[%emt 0:09:38]} 21. Bd2 {[%emt 0:02:12]} Nce8 {[%emt 0:00:24]} 22. Be1 {[%emt 0:04:17]} Nd6 {[%emt 0:01:03]} 23. Bh4 {[%emt 0:00:29]} Be7 {[%emt 0:00:04]} 24. Bg5 {[%emt 0:01:34]} Ng8 {[%emt 0:02:25]} 25. Nf3 {[%emt 0:01:53]} h6 {[%emt 0:01:24]} 26. Bxe7 {[%emt 0:00:54]} Qxe7 {[%emt 0:00:04]} 27. Ne5 {[%emt 0:01:39]} Nf6 {[%emt 0:00:06]} 28. Ra2 {[%emt 0:02:18]} Nfe4 {[%emt 0:02:18]} 29. Qe1 {[%emt 0:02:39]} Rag8 {[%emt 0:01:03]} 30. c4 {[%emt 0:01:15]} f6 {[%emt 0:00:29]} 31. Nf3 {[%emt 0:01:53]} b6 {[%emt 0:00:24]} 32. Rc2 {[%emt 0:01:00]} c5 {[%emt 0:02:32]} 33. cxd5 {[%emt 0:02:47]} exd5 {[%emt 0:00:09]} 34. Qh4 {[%emt 0:04:05]} c4 {[%emt 0:02:37]} 35. bxc4 {[%emt 0:00:45]} dxc4 {[%emt 0:00:36]} 36. Bxe4 {[%emt 0:00:15]} Nxe4 {[%emt 0:00:13]} 37. Qh5 {[%emt 0:00:45]} Nd6 {[%emt 0:01:03]} 38. Re1 {[%emt 0:00:41]} Kh7 {[%emt 0:00:16]} 39. Qh3 {[%emt 0:02:25]} Qe4 {[%emt 0:00:23]} 40. Ree2 {[%emt 0:00:24]} Qc6 {[%emt 0:01:17]} 41. Ra2 {[%emt 0:01:13]} b5 {[%emt 0:00:06]} 42. axb5 {[%emt 0:00:24]} Qxb5 {[%emt 0:00:11]} 43. Reb2 {[%emt 0:00:18]} Qe8 {[%emt 0:00:27]} 44. Ne1 {[%emt 0:01:37]} c3 {[%emt 0:04:22]} 45. Rc2 {[%emt 0:00:43]} Qb5 {[%emt 0:00:21]} 46. Qf3 {[%emt 0:02:17]} Ne4 {[%emt 0:00:21]} 47. Qf1 {[%emt 0:00:24]} Qb3 {[%emt 0:01:31]} 48. Qe2 {[%emt 0:00:53]} a4 {[%emt 0:01:09]} 49. Qh5 {[%emt 0:02:16]} Qb1 {[%emt 0:02:46]} 50. Qh4 {[%emt 0:00:16]} Rg4 {[%emt 0:00:27]} 51. Qf2 {[%emt 0:00:55]} Rxg2+ {[%emt 0:02:10]} 0-1